Cogmind - Beta 10.2 @@@ ROGUE MODE // 2021.06.21 @ 21:09:14 Player: Sebsebeleb Result: Destroyed by as-53041 with Assembled Heavy Rifle Performance ------------- Evolutions (0) 0 Regions Visited (2) 400 Robots Destroyed (7) 35 Value Destroyed (165) 165 Prototype IDs (0) 0 Alien Tech Used (0) 0 Bonus (0) 0 TOTAL SCORE: 600 Bonus ------- None Cogmind --------- Core Integrity 0/250 Matter 275/300 Energy 98/100 System Corruption 0% Temperature Cool (1) Movement Walking (120) Location -10/Mines Parts ------- > --- POWER (1) -------- (None) > --- PROPULSION (2) --- Aluminum Leg > --- UTILITY (2) ------ Medium Storage Unit Signal Interpreter > --- WEAPON (2) ------- Hammer > --- INVENTORY (8) ---- Improved Heat Sink Large Storage Unit Light Assault Rifle Datajack Peak State ------------ > --- POWER ------------ Light Ion Engine > --- PROPULSION ------- Aluminum Leg Aluminum Leg > --- UTILITY ---------- Medium Storage Unit Visual Processing Unit > --- WEAPON ----------- EM Pulse Gun Light Assault Rifle > --- INVENTORY -------- Light Treads Aluminum Leg Aluminum Leg Improved Heat Sink Medium Storage Unit Large Storage Unit Beam Cannon Grenade Launcher [Rating: 9] Favorites ----------- Power Light Ion Engine Engine Light Ion Engine Propulsion Aluminum Leg Treads Light Treads Leg Aluminum Leg Utility Medium Storage Unit Storage Medium Storage Unit Processor Visual Processing Unit Weapon Light Assault Rifle Energy Gun EM Pulse Gun Energy Cannon Beam Cannon Ballistic Gun Light Assault Rifle Special Weapon Mining Laser Impact Weapon Hammer Special Melee Weapon Datajack Build | -11 -10 -10 ------- Run | Scr Mat Min Slots Evolved . | . . . Power . | . . . Propulsion . | . . . Utility . | . . . Weapon . | . . . Parts Attached 22 | 8 8 6 Power 1 | 1 . . Engine 1 | 1 . . Core . | . . . Reactor . | . . . Propulsion 8 | 4 2 2 Treads 2 | 2 . . Leg 6 | 2 2 2 Wheel . | . . . Hover . | . . . Flight . | . . . Utility 4 | 1 3 . Device . | . . . Storage 2 | 1 1 . Processor 2 | . 2 . Hackware . | . . . Protection . | . . . Artifact . | . . . Weapon 9 | 2 3 4 Energy Gun 2 | 2 . . Energy Cannon 1 | . . 1 Ballistic Gun 3 | . 3 . Ballistic Cannon . | . . . Launcher . | . . . Special Weapon 1 | . . 1 Impact Weapon 1 | . . 1 Slashing Weapon . | . . . Piercing Weapon . | . . . Special Melee Weapon 1 | . . 1 Unidentified Prototypes . | . . . Parts Lost 8 | . 1 7 Power 1 | . . 1 Propulsion 3 | . . 3 Utility . | . . . Weapon 4 | . 1 3 Highest Loss Streak 5 | . 1 5 Average Slot Usage (%) 91 | . 97 82 Engine 9 | . 14 3 Leg 27 | . 28 25 Storage 14 | . 14 14 Processor 12 | . 11 14 Energy Gun 6 | . 10 . Energy Cannon 3 | . . 8 Ballistic Gun 15 | . 17 11 Naked Turns . | . . . Heaviest Build 15 | 11 14 15 Greatest Support 40 | 40 20 20 Greatest Overweight (x) 2 | 1 . 2 Average Overweight (x) . | . . . Largest Inventory Capacity 8 | 6 8 8 Average Capacity 7 | 5 7 8 Most Carried 8 | 6 8 8 Average Carried 6 | 3 6 7 Final Capacity 8 | 6 8 8 Final Carried 8 | 6 8 4 Class Distribution -------------------- 100% | Mutant Dominant Class ---------------- Mutant | -10/Materials Mutant | -10/Mines Resources | -11 -10 -10 ----------- Run | Scr Mat Min Matter Collected 413 | 211 149 53 Remotely . | . . . Salvage Created 345 | . 280 65 Parts 14 | . 14 . Haulers Intercepted 1 | . 1 . Recyclers Shooed 2 | . 2 . Parts Field Recycled . | . . . Retrieved Matter . | . . . Parts Self-Destructed . | . . . Prevented . | . . . Kills | -11 -10 -10 ------- Run | Scr Mat Min Combat Hostiles Destroyed 7 | . 3 4 Guns 5 | . 3 2 Cannons 2 | . . 2 Classes Destroyed 4 | . 3 1 Hauler 1 | . 1 . Watcher 3 | . 3 . Grunt 3 | . 3 . Assembled 4 | . . 4 Best Kill Streak 4 | . 3 4 Combat Bots Only 4 | . 2 4 Max Kills in Single Turn 1 | . 1 1 Gunslinging . | . . . Exploded . | . . . Melee . | . . . Uniques/NPCs Destroyed . | . . . Combat | -11 -10 -10 -------- Run | Scr Mat Min Damage Taken 1136 | . 265 871 Core 260 | . . 260 Absorbed by Shields . | . . . Core Remaining (%) 100 | 100 . . Volleys Fired 40 | . 28 12 Largest 2 | . 2 2 Hottest 90 | . 90 80 Shots Fired 80 | . 56 24 Gun 68 | . 56 12 Cannon 12 | . . 12 Launcher . | . . . Special . | . . . Kinetic 39 | . 27 12 Thermal 19 | . 7 12 Explosive . | . . . Electromagnetic 22 | . 22 . Robot Hit Streak 11 | . 7 11 Robot Miss Streak 4 | . 3 4 Penetration Max . | . . . Secondary Targets . | . . . Shots Hit Robots 50 | . 29 21 Core Hits 22 | . 13 9 Critical Hits . | . . . Critical Kills . | . . . Critical Parts Destroyed . | . . . Melee Attacks 8 | . . 8 Impact 6 | . . 6 Slashing . | . . . Piercing . | . . . Sneak Attacks 1 | . . 1 Combat Hostiles . | . . . Follow-up Attacks . | . . . Damage Inflicted 589 | . 308 281 Guns 365 | . 308 57 Cannons 155 | . . 155 Explosions . | . . . Melee 69 | . . 69 Ramming . | . . . Kinetic 158 | . 101 57 Thermal 181 | . 26 155 Explosive . | . . . Electromagnetic 181 | . 181 . Impact 69 | . . 69 Slashing . | . . . Piercing . | . . . Highest Corruption . | . . . Average Corruption . | . . . Corruption Purged . | . . . Overload Shots . | . . . Overflow Damage 5 | . . 5 Projectiles 5 | . . 5 Explosions . | . . . Melee . | . . . Knockbacks . | . . . Impact . | . . . Kinetic . | . . . Secondary . | . . . Self-Inflicted Damage . | . . . Shots . | . . . Rammed . | . . . Targets Rammed . | . . . Kicked . | . . . Crushed . | . . . Highest Temperature 230 | . 139 230 Average Temperature 68 | . 52 95 Received Heat Transfer 427 | . 147 280 Siege Activations . | . . . Robots Corrupted . | . . . Combat Hostiles . | . . . Parts Fried . | . . . Impact Corruptions . | . . . Robots Melted . | . . . Combat Hostiles . | . . . Parts Melted . | . . . Heat Transferred 407 | . 74 333 Parts Sabotaged . | . . . Parts Stolen . | . . . Parts Stripped . | . . . Power Chain Reactions . | . . . Missiles Intercepted . | . . . Alert | -11 -10 -10 ------- Run | Scr Mat Min Peak Influence 174 | . 174 . Initial . | . . . Average 47 | . 83 . Maximum Alert Level . | . . . Low Security (%) 100 | 100 100 100 Level 1 . | . . . Level 2 . | . . . Level 3 . | . . . Level 4 . | . . . Level 5 . | . . . High Security . | . . . Max Security . | . . . Squads Dispatched 1 | . 1 . Investigation . | . . . Extermination . | . . . Reinforcement 1 | . 1 . Assault . | . . . Garrison . | . . . Intercept . | . . . Construction Impeded . | . . . Haulers Reinforced . | . . . Stealth | -11 -10 -10 --------- Run | Scr Mat Min Distress Signals 2 | . 1 1 Communications Jammed . | . . . Distress Signals . | . . . Times Spotted 22 | . 11 11 Peak Tracking Total 4 | . 3 4 Tactical Retreats 1 | . . 1 Traps | -11 -10 -10 ------- Run | Scr Mat Min Traps Triggered . | . . . Indirectly . | . . . Trap Hack Attempts . | . . . Triggered . | . . . Disarmed . | . . . Reprogrammed . | . . . Reused . | . . . Traps Extracted . | . . . Installed . | . . . Triggered . | . . . Machines | -11 -10 -10 ---------- Run | Scr Mat Min Machines Disabled . | . . . Max in Single Turn . | . . . Machines Sabotaged . | . . . Garrisons Compromised . | . . . Overloaded Fab Kills . | . . . Fab Network Shutdowns . | . . . Hacking | -11 -10 -10 --------- Run | Scr Mat Min Machines Accessed 1 | . 1 . Terminals 1 | . 1 . Fabricators . | . . . Repair Stations . | . . . Recycling Units . | . . . Scanalyzers . | . . . Garrison Access . | . . . Total Hacks 4 | . 4 . Successful 1 | . 1 . Failed 3 | . 3 . Catastrophic 2 | . 2 . Database Lockouts . | . . . Manual 2 | . 2 . Terminals 4 | . 4 . Fabricators . | . . . Repair Stations . | . . . Recycling Units . | . . . Scanalyzers . | . . . Garrison Access . | . . . Terminal Hacks 1 | . 1 . Branch Access Points 1 | . 1 . Fabricator Hacks . | . . . Repair Station Hacks . | . . . Recycling Unit Hacks . | . . . Scanalyzer . | . . . Garrison Access Hacks . | . . . Unauthorized Hacks . | . . . Terminals . | . . . Fabricators . | . . . Repair Stations . | . . . Recycling Units . | . . . Scanalyzers . | . . . Garrison Access . | . . . Data Cores Recovered . | . . . Used . | . . . Hacking Detections 1 | . 1 . Full Trace Events 1 | . 1 . Feedback Events . | . . . Feedback Blocked . | . . . Robot Schematics Acquired . | . . . Robots Built . | . . . Matter . | . . . Time . | . . . Total Robot Build Rating . | . . . Part Schematics Acquired . | . . . Parts Built . | . . . Matter . | . . . Time . | . . . Total Part Build Rating . | . . . Parts Repaired . | . . . Time . | . . . Parts Recycled . | . . . Recycled Matter . | . . . Retrieved Matter . | . . . Retrieved Components . | . . . Parts Scanalyzed . | . . . Part Schematics Acquired . | . . . Parts Damaged . | . . . Bothacking | -11 -10 -10 ------------ Run | Scr Mat Min Used RIF Installer . | . . . Robots Hacked 2 | . . 2 Non-combat 1 | . . 1 Combat 1 | . . 1 Robot Hacks Applied 2 | . . 2 parse_system 1 | . . 1 no_distress 1 | . . 1 Relay Couplers Released . | . . . Robots Rewired . | . . . Allies Hacked . | . . . Hacks Repelled . | . . . Allies | -11 -10 -10 -------- Run | Scr Mat Min Total Allies . | . . . Largest Group . | . . . Highest-Rated Group . | . . . Highest-Rated Ally . | . . . Total Orders . | . . . Ally Attacks . | . . . Total Damage . | . . . Kills . | . . . Allies Corrupted . | . . . Allies Melted . | . . . Intel | -11 -10 -10 ------- Run | Scr Mat Min Robot Analysis Total . | . . . Derelict Logs Recovered 1 | . . 1 Drone Launches . | . . . Drone Recoveries . | . . . Exploration | -11 -10 -10 ------------- Run | Scr Mat Min Turns Passed 789 | 72 451 266 Spaces Moved 493 | 49 278 166 Core 11 | 9 . 2 Treads 5 | 5 . . Legs 477 | 35 278 164 Wheels . | . . . Hover . | . . . Flight . | . . . Fastest Speed 50 | 50 120 120 Average Speed 119 | 114 120 121 Slowest Speed 160 | 160 120 150 Overloaded Moves . | . . . Propulsion Burnouts . | . . . Robots Hopped . | . . . Cave-ins Triggered . | . . . Exploration Rate (%) 29 | 3 40 44 Regions Visited 2 Branch Regions 1 Pre-discovered Areas . | . . . Known Exits Taken 1 | . 1 . Unknown Exits Taken 1 | 1 . . Scrap Searched . | . . . Spaces Dug . | . . . Terrain Destroyed . | . . . Melee . | . . . Projectile . | . . . AOE . | . . . Terrain Rammed . | . . . Walls Destroyed . | . . . Machines Disabled . | . . . Actions | -11 -10 -10 --------- Run | Scr Mat Min Total 610 | 62 350 198 Wait 18 | . 12 6 Move 491 | 48 277 166 Hop . | . . . Pick Up 15 | 4 11 . Fast Attach 11 | 8 3 . Attach 5 | . 1 4 Detach 3 | 2 1 . Swap 6 | . 4 2 Drop 13 | . 13 . Fire 40 | . 28 12 Melee 8 | . . 8 Ram . | . . . Kick . | . . . Crush . | . . . Escape Stasis . | . . . Rewire . | . . . Trap . | . . . Miscellaneous . | . . . Route ------- -11/Scrapyard -10/Materials (discovered 2 exits: *Min x2) -10/Mines History --------- Turn | Location | Event 15 | -11/Scrapyard | Discovered new exit (range 15) 73 | -11/Scrapyard | Entered Materials 331 | -10/Materials | Build established: Mutant 337 | -10/Materials | Identified exit to Mines 524 | -10/Materials | Entered Mines 549 | -10/Mines | Assembled infested the area 554 | -10/Mines | Assisted by a Guerilla fighting off Assembled 565 | -10/Mines | Learned location of 1 exit from Materials 750 | -10/Mines | Core integrity fell below 50% 783 | -10/Mines | Core integrity fell below 20% 790 | -10/Mines | Destroyed by as-53041 with Assembled Heavy Rifle Last Messages --------------- 00566_ XM-548(h) destroyed. 00574_ Jacked as-58149... >>parse_system Reading system data... 00582_ Lgt. Ion Engine destroyed. 00589_ as-58149 destroyed. 00594_ Aluminum Leg destroyed. 00606_ Destroyed Asb. F-torch. 00606_ as-90442 destroyed. 00612_ as-28022 destroyed. 00618_ as-20989 destroyed. 00620_ Acquired 12 matter. 00622_ Acquired 19 matter. 00624_ Acquired 20 matter. 00629_ Acquired 2 matter. 00731_ Beam Cannon destroyed. 00747_ T-07 Excavator destroyed. 00747_ Lgt. Assault Rifle destroyed. 00760_ Aluminum Leg destroyed. 00779_ Mining Laser destroyed. Map ----- +----------------------------------------------------+ | ??????????????????????????# #???????????# "? | | ??????????????????????????# # #??????????# "? | | ??????????????????????????# #?? ????### #? | | ??????????????????????????# #???? ?? =!#? | | ??????????????????????????# #?????? ###??##%## | | ??????????????????????????# #???????? ##????# * | | ??????????????????????????# ##### #?????# | | ?????????????####?????????# !%= #?????# ## | | ????????????## ##??####?## =##### #??????# ## | | ????????????# #?## ### =%*#??????????????# | | ####??####??# #?# #???????###????# ## | | #### #### #?# ##??????? #????# #? | | ## ## #?## #????????# #????# #? | | #### #????????# ##???# #? | | ### """ ## #???????## #???# #? | | ##?## """ ##??????## #???# #? | | ##???## """ ## ##????#### ##??# #? | | ??????## """ ######????## #### #? | | ???????## #?????????# #? | | ????????## ## #?????????# #? | | ?????????###### #?????????# ## ####? | | ??????????????## ##????????## %## #???? | | ???????????????#### #???####### #???? | | ??????????????????# #??## ## ####???? | | ??????????????????# #### #### #??????? | | ??????????????????# a @ ##??## ##??????? | | ??????????????????# a aa ##????####???????? | | ??????????????????######## ##????????????????? | | ?????????????????????????#######?????????????????? | | ?????????????????????????????????????????????????? | | ?????????????????????????????????????????????????? | | | | | | | | | | | | | | | | | | | | | | | | | | | | | | | | | | | | | | | +----------------------------------------------------+ Best States ------------- Heat Dissipation 25 Energy Generation 10 Energy Capacity 125 Matter Stores 300 Matter Capacity 300 Sight Range 18 Terrain Scan Density 10 Evasion (%) 40 Recoil Reduction 2 Item Schematics ----------------- None Robot Schematics ------------------ None Fabricated ------------ Nothing Alien Tech Used ----------------- None Achievements -------------- None Challenges ------------ None Game ------ Seed CoolantFlakMediator Manual? 0 Play Time 00:11:35 Cumulative 28.1 hours Start 2021.06.21 @ 20:57:26 End 2021.06.21 @ 21:09:14 Sessions 1 Manual Loads 0 Difficulty Rogue Special Mode None Game No. 14 Rogue 14 Adventurer 0 Explorer 0 Win Type - Total 0 Types 0/0/0/0/0/0/0/0/0 Lore% 19 Gallery% 34 Achievement% 21 Wizard Run 0 Options --------- ASCII 0 Keyboard 0 Movement Numpad Keybinds 0 Fullscreen 1 Font 18/X11Bold Map View 76x50 Tactical HUD 1 Map Filters NONE Filters NONE Steam 1 RUN: 8334d47c-6c0c-43de-8564-540cf79975fe